fUST/lending_fUST_20250408
["ID","MTS","AMOUNT","RATE_DAILY","PERIOD"]
[357491887,1744086638917,-546.08824917,0.00020941,2]
[357491888,1744086638927,-851.25,0.00020941,2]
[357491889,1744086638936,-500.0,0.00020941,2]
[357491890,1744086638946,-500.0,0.00020941,2]
[357491891,1744086638955,-500.0,0.00020941,2]
[357491892,1744086638965,-500.0,0.00020941,2]
[357491893,1744086638975,-500.0,0.00020941,2]
[357491894,1744086638985,-500.0,0.00020941,2]
[357491895,1744086638995,-500.0,0.00020941,2]
[357491896,1744086639005,-500.0,0.00020941,2]
[357491897,1744086639014,-562.85202726,0.00020941,2]
[357491898,1744086639023,-500.0,0.00020941,2]
[357491899,1744086639035,-500.0,0.00020941,2]
[357491900,1744086639045,-833.31,0.00020941,2]
[357491901,1744086639055,-500.0,0.00020941,2]
[357491902,1744086639064,-500.0,0.00020941,2]
[357491903,1744086639073,-679.9,0.00020941,2]
[357491904,1744086639083,-644.77,0.00020941,2]
[357491905,1744086639093,-500.0,0.00020941,2]
[357491906,1744086639102,-500.0,0.00020941,2]
[357491907,1744086639112,-500.0,0.00020941,2]
[357491908,1744086639122,-500.0,0.00020941,2]
[357491909,1744086639132,-500.0,0.00020941,2]
[357491910,1744086639141,-753.68,0.00020941,2]
[357491911,1744086639151,-500.0,0.00020941,2]
[357491912,1744086639161,-500.0,0.00020941,2]
[357491913,1744086639170,-500.0,0.00020941,2]
[357491914,1744086639180,-531.83683866,0.00020941,2]
[357491915,1744086639189,-753.22,0.00020941,2]
[357491916,1744086639198,-500.0,0.00020941,2]
[357491917,1744086639208,-500.0,0.00020941,2]
[357491918,1744086639217,-500.0,0.00020941,2]
[357491919,1744086639227,-500.0,0.00020941,2]
[357491920,1744086639236,-500.0,0.00020941,2]
[357491921,1744086639246,-761.98,0.00020941,2]
[357491922,1744086639255,-500.0,0.00020941,2]
[357491923,1744086639265,-610.37,0.00020941,2]
[357491924,1744086639275,-500.0,0.00020941,2]
[357491925,1744086639284,-500.0,0.00020941,2]
[357491926,1744086639294,-500.0,0.00020941,2]
[357491927,1744086639303,-150.60226968,0.00020941,2]
[357491928,1744086639312,-719.12,0.00020941,2]
[357491929,1744086639322,-500.0,0.00020941,2]
[357491930,1744086639332,-1393.25,0.00020941,2]
[357491931,1744086639341,-331.93918513,0.00020941,2]
[357491932,1744086639350,-500.0,0.00020941,2]
[357491933,1744086639360,-500.0,0.00020941,2]
[357491934,1744086639372,-500.0,0.00020941,2]
[357491935,1744086639381,-500.0,0.00020941,2]
[357491936,1744086639391,-500.0,0.00020941,2]
[357491937,1744086639401,-1195.98,0.00020941,2]
[357491938,1744086639411,-156.80660021,0.00020941,2]
[357491939,1744086639421,-500.0,0.00020941,2]
[357491940,1744086639432,-500.0,0.00020941,2]
[357491941,1744086639444,-500.0,0.00020941,2]
[357491942,1744086639454,-500.0,0.00020941,2]
[357491943,1744086639464,-967.6,0.00020941,2]
[357491944,1744086639474,-500.0,0.00020941,2]
[357491945,1744086639483,-500.0,0.00020941,2]
[357491946,1744086639493,-500.0,0.00020941,2]
[357491947,1744086639502,-500.0,0.00020941,2]
[357491948,1744086639511,-796.03,0.00020941,2]
[357491949,1744086639521,-1898.17,0.00020941,2]
[357491950,1744086639531,-500.0,0.00020941,2]
[357491951,1744086639541,-500.0,0.00020941,2]
[357491952,1744086639550,-500.0,0.00020941,2]
[357491953,1744086639559,-768.2,0.00020941,2]
[357491954,1744086639569,-500.0,0.00020941,2]
[357491955,1744086639578,-500.0,0.00020941,2]
[357491956,1744086639588,-5795.33,0.00020941,2]
[357491957,1744086639597,-2711.65,0.00020941,2]
[357491958,1744086639606,-500.0,0.00020941,2]
[357491959,1744086639616,-500.0,0.00020941,2]
[357491960,1744086639625,-500.0,0.00020941,2]
[357491961,1744086639634,-168.23216722,0.00020941,2]
[357491962,1744086639644,-1025.53,0.00020941,2]
[357491963,1744086639654,-500.0,0.00020941,2]
[357491964,1744086639664,-500.0,0.00020941,2]
[357491965,1744086639674,-500.0,0.00020941,2]
[357491966,1744086639683,-500.0,0.00020941,2]
[357491967,1744086639693,-500.0,0.00020941,2]
[357491968,1744086639704,-500.0,0.00020943,2]
[357491969,1744086639713,-500.0,0.00020943,2]
[357491970,1744086639723,-500.0,0.00020943,2]
[357491971,1744086639736,-500.0,0.00020943,2]
[357491972,1744086639749,-689.58,0.00020943,2]
[357491973,1744086639765,-500.0,0.00020943,2]
[357491974,1744086639776,-500.0,0.00020943,2]
[357491975,1744086639788,-375.22860736,0.00020943,2]
[357491976,1744086639798,-500.0,0.00020943,2]
[357491977,1744086639808,-500.0,0.00020943,2]
[357491978,1744086639820,-152.0,0.00020965,2]
[357491979,1744086639830,-1815.0,0.00021,2]
[357491980,1744086639839,-154.17431063,0.00021104,2]
[357491981,1744086639850,-200.0,0.00021104,2]
[357491982,1744086639859,-84472.7606871,0.00021114,2]
[357491983,1744086639869,-364759.03157446,0.00021117,2]
[357491998,1744086640940,-0.00637808,0.00020263,2]
[357491999,1744086641900,-243.11512464,0.00019989,2]
[357492007,1744086643571,-256.88487536,0.00019989,2]
[357492009,1744086643582,-499.99362192,0.00020263,2]
[357492010,1744086643593,-500.0,0.00020263,2]
[357492011,1744086643603,-500.0,0.00020537,2]
[357492013,1744086643613,-500.0,0.00020665,2]
[357492015,1744086643624,-500.0,0.00020665,2]
[357492017,1744086643634,-500.0,0.00020666,2]
[357492019,1744086643644,-531.02,0.00020666,2]
[357492021,1744086643654,-500.0,0.00020811,2]
[357492023,1744086643664,-500.0,0.00020939,2]
[357492026,1744086643675,-500.0,0.00020939,2]
[357492027,1744086643685,-500.0,0.0002094,2]
[357492028,1744086643695,-531.02,0.0002094,2]
[357492029,1744086643704,-215.51758128,0.00021085,2]
[357492030,1744086643714,-5240.96842554,0.00021117,2]
[357492031,1744086643724,-362.19133297,0.00021173,2]
[357492032,1744086643734,-500.0,0.00021173,2]
[357492033,1744086643747,-500.0,0.00021173,2]
[357492034,1744086643757,-500.0,0.00021173,2]
[357492035,1744086643768,-500.0,0.00021173,2]
[357492036,1744086643779,-343.83498097,0.00021173,2]
[357492037,1744086643788,-501.530967,0.00021173,2]
[357492038,1744086643799,-500.0,0.00021173,2]
[357492039,1744086643809,-500.0,0.00021173,2]
[357492040,1744086643819,-503.04786196,0.00021173,2]
[357492041,1744086643830,-422.52295166,0.00021173,2]
[357492042,1744086643840,-502.23508926,0.00021173,2]
[357492043,1744086643849,-500.0,0.00021173,2]
[357492044,1744086643860,-500.0,0.00021173,2]
[357492045,1744086643870,-500.0,0.00021173,2]
[357492046,1744086643880,-500.0,0.00021173,2]
[357492047,1744086643890,-500.0,0.00021173,2]
[357492048,1744086643900,-500.0,0.00021173,2]
[357492049,1744086643909,-510.51597721,0.00021173,2]
[357492050,1744086643920,-500.0,0.00021173,2]
[357492051,1744086643930,-500.0,0.00021173,2]
[357492052,1744086643939,-500.0,0.00021173,2]
[357492053,1744086643949,-500.0,0.00021173,2]
[357492054,1744086643959,-500.0,0.00021173,2]
[357492055,1744086643969,-500.0,0.00021173,2]
[357492056,1744086643979,-500.0,0.00021173,2]
[357492057,1744086643990,-500.0,0.00021173,2]
[357492058,1744086644000,-500.0,0.00021213,2]
[357492059,1744086644011,-506.68352459,0.00021213,2]
[357492060,1744086644021,-757.25,0.00021213,2]
[357492061,1744086644031,-500.0,0.00021213,2]
[357492062,1744086644041,-3049.04,0.00021213,2]
[357492063,1744086644052,-500.0,0.00021213,2]
[357492064,1744086644063,-743.38,0.00021213,2]
[357492065,1744086644073,-1074.26,0.00021213,2]
[357492066,1744086644083,-1107.01,0.00021213,2]
[357492067,1744086644093,-698.6,0.00021213,2]
[357492068,1744086644103,-262.83524846,0.00021213,2]
[357492069,1744086646368,-500.0,0.00020665,2]
[357492070,1744086646378,-500.0,0.00020666,2]
[357492071,1744086646388,-500.0,0.00020939,2]
[357492072,1744086646399,-237.16475154,0.00021213,2]
[357492073,1744086646409,-1839.77,0.00021213,2]
[357492074,1744086646419,-704.75,0.00021213,2]
[357492075,1744086646429,-1019.15,0.00021213,2]
[357492076,1744086646439,-500.0,0.00021213,2]
[357492077,1744086646450,-500.0,0.00021213,2]
[357492078,1744086646460,-500.0,0.00021213,2]
[357492079,1744086646471,-1128.08,0.00021213,2]
[357492080,1744086646482,-1358.15,0.00021213,2]
[357492081,1744086646492,-545.96104395,0.00021213,2]
[357492082,1744086646502,-705.43,0.00021213,2]
[357492083,1744086646513,-533.98556897,0.00021213,2]
[357492084,1744086646522,-539.1922949,0.00021213,2]
[357492085,1744086646533,-500.0,0.00021213,2]
[357492086,1744086646544,-500.0,0.00021213,2]
[357492087,1744086646553,-500.0,0.00021213,2]
[357492088,1744086646566,-500.0,0.00021213,2]
[357492089,1744086646576,-500.0,0.00021214,2]
[357492090,1744086646586,-500.0,0.00021214,2]
[357492091,1744086646597,-500.0,0.00021214,2]
[357492092,1744086646607,-500.0,0.00021214,2]
[357492093,1744086646617,-495.696526,0.00021214,2]
[357492094,1744086646628,-500.0,0.00021214,2]
[357492095,1744086646639,-579.53,0.00021214,2]
[357492096,1744086646650,-545.62338288,0.00021214,2]
[357492097,1744086646660,-500.0,0.00021214,2]
[357492098,1744086646670,-500.0,0.00021214,2]
[357492099,1744086646680,-500.0,0.00021214,2]
[357492100,1744086646690,-500.0,0.00021214,2]
[357492101,1744086646700,-500.0,0.00021214,2]
[357492102,1744086646710,-500.0,0.00021214,2]
[357492103,1744086646721,-500.0,0.00021214,2]
[357492104,1744086646731,-538.28458794,0.00021214,2]
[357492105,1744086646746,-500.0,0.00021214,2]
[357492106,1744086646756,-500.0,0.00021214,2]
[357492107,1744086646766,-500.0,0.00021214,2]
[357492108,1744086646776,-500.0,0.00021214,2]
[357492109,1744086646787,-1208.47,0.00021214,2]
[357492110,1744086646796,-500.0,0.00021214,2]
[357492111,1744086646807,-1448.18,0.00021214,2]
[357492112,1744086646818,-857.75,0.00021214,2]
[357492113,1744086646828,-500.0,0.00021214,2]
[357492114,1744086646838,-1736.13,0.00021214,2]
[357492115,1744086646848,-500.0,0.00021214,2]
[357492116,1744086646859,-642.85974134,0.00021214,2]
[357492117,1744086646869,-785.28,0.00021214,2]
[357492118,1744086646879,-500.0,0.00021214,2]
[357492119,1744086646889,-500.0,0.00021214,2]
[357492120,1744086646899,-23.00139312,0.00021214,2]
[357492121,1744086646917,-806.88860688,0.00021214,2]
[357492122,1744086646927,-500.0,0.00021214,2]
[357492123,1744086646937,-757.43,0.00021214,2]
[357492124,1744086646947,-500.0,0.00021214,2]
[357492125,1744086646958,-500.0,0.00021214,2]
[357492126,1744086646967,-500.0,0.00021214,2]
[357492127,1744086646978,-500.0,0.00021214,2]
[357492128,1744086646988,-1079.66,0.00021214,2]
[357492129,1744086646998,-500.0,0.00021214,2]
[357492130,1744086647007,-500.0,0.00021214,2]
[357492131,1744086647017,-500.0,0.00021214,2]
[357492132,1744086647027,-500.0,0.00021214,2]
[357492133,1744086647038,-500.0,0.00021214,2]
[357492134,1744086647047,-362.61699312,0.00021214,2]
[357492135,1744086651000,-165.1872738,0.00020666,2]
[357492136,1744086659714,-326.45859928,0.00020665,2]
[357492137,1744086660843,-214.91695652,0.00019989,2]
[357492138,1744086664712,-233.328179,0.00019989,2]
[357492139,1744086670666,-51.75486448,0.00019989,2]
[357492140,1744086670691,-106.34513552,0.00020263,2]
[357492141,1744086675673,-300.0,0.00020263,2]
[357492142,1744086681663,-93.65486448,0.00020263,2]
[357492143,1744086681689,-225.60602692,0.00020537,2]
[357492144,1744086688409,-300.0,0.00019989,2]
[357492145,1744086691963,-154.80629526,0.00019989,2]
[357492146,1744086719697,-45.19370474,0.00019989,2]
[357492147,1744086719721,-456.81575078,0.00019989,2]
[357492148,1744086723898,-166.175021,0.00019988,2]
[357492149,1744086735418,-133.824979,0.00019988,2]
[357492150,1744086735441,-43.18424922,0.00019989,2]
[357492151,1744086735465,-322.99077178,0.00019989,2]
[357492152,1744086736481,-177.00922822,0.00019989,2]
[357492153,1744086738285,-500.0,0.00019989,2]
[357492154,1744086738309,-481.11725077,0.00019989,2]
[357492155,1744086753739,-18.88274923,0.00019989,2]
[357492156,1744086753762,-139.21725077,0.00019989,2]
[357492157,1744086759602,-199.5032,0.00019989,2]
[357492158,1744086869948,-193.2661,0.00019788,2]
[357492159,1744086930363,-250.0,0.00019018,2]
[357492161,1744086985602,-351.5451835,0.00019252,2]
[357492162,1744087058098,-406.7339,0.0001959,2]
[357492183,1744087240228,-276.5493959,0.00019129,2]
[357492184,1744087264235,-500.9054206,0.00019129,2]
[357492185,1744087272177,-104.7941366,0.00019129,2]
[357492186,1744087272203,-86.71989927,0.00019889,2]
[357492187,1744087276959,-167.67538393,0.00019889,2]
[357492190,1744087282252,-165.1872738,0.00019889,2]
[357492191,1744087292464,-151.0,0.00019889,2]
[357492192,1744087297259,-168.96331788,0.00019889,2]
[357492193,1744087363662,-1064.3595,0.0001906,2]
[357492194,1744087381856,-162.86749437,0.0001906,2]
[357492198,1744087545119,-306.20698225,0.0001906,2]
[357492199,1744087546282,-154.25428328,0.0001906,2]
[357492200,1744087552884,-185.41821239,0.0001906,2]
[357492201,1744087562492,-231.46438945,0.0001906,2]
[357492204,1744087570842,-300.0,0.0001906,2]
[357492205,1744087576077,-186.90510313,0.0001906,2]
[357492206,1744087582358,-191.90544578,0.0001906,2]
[357492207,1744087638834,-198.11613066,0.00018991,2]
[357492208,1744087646017,2566.0,0.00022,10]
[357492209,1744087659326,-158.38842396,0.00018991,2]
[357492211,1744087693066,-159.17044552,0.00018988,2]
[357492212,1744087705579,-6.27998498,0.00018988,2]
[357492213,1744087705601,-133.49544538,0.00018991,2]
[357492214,1744087705623,-12.22456964,0.0001906,2]
[357492215,1744087760733,-759.01865406,0.0001906,2]
[357492218,1744087787641,-200.0,0.00019,2]
[357492219,1744087801895,-164.9835011,0.00019,2]
[357492220,1744087810929,-246.64000001,0.00019,2]
[357492221,1744087815422,-228.25239335,0.00019,2]
[357492222,1744087829722,-287.1933,0.00019,2]
[357492238,1744087832524,-6212.9423847,0.00019,2]
[357492239,1744087832536,-58.79955125,0.0001906,2]
[357492240,1744087832547,-300.0,0.00019985,2]
[357492241,1744087832557,-500.0,0.00019986,2]
[357492242,1744087832568,-3144.01,0.00019986,2]
[357492243,1744087832578,-1236.86,0.00019986,2]
[357492244,1744087832588,-500.0,0.00019986,2]
[357492245,1744087832598,-500.0,0.00019986,2]
[357492247,1744087832608,-500.0,0.00019986,2]
[357492249,1744087832618,-500.0,0.00019986,2]
[357492250,1744087832628,-535.24762699,0.00019987,2]
[357492252,1744087832638,-500.0,0.00019987,2]
[357492254,1744087832648,-527.5022662,0.00019987,2]
[357492256,1744087832658,-500.0,0.00019987,2]
[357492258,1744087832668,-500.0,0.00019987,2]
[357492260,1744087832678,-500.0,0.00019987,2]
[357492262,1744087832688,-500.0,0.00019987,2]
[357492264,1744087832698,-500.0,0.00019987,2]
[357492266,1744087832708,-500.0,0.00019987,2]
[357492268,1744087832718,-500.0,0.00019987,2]
[357492270,1744087832727,-500.0,0.00019987,2]
[357492272,1744087832737,-500.0,0.00019987,2]
[357492274,1744087832747,-513.38290688,0.00019987,2]
[357492276,1744087832757,-500.0,0.00019987,2]
[357492278,1744087832767,-939.52,0.00019987,2]
[357492280,1744087832777,-500.0,0.00019987,2]
[357492282,1744087832786,-500.0,0.00019987,2]
[357492284,1744087832796,-500.0,0.00019987,2]
[357492286,1744087832805,-500.0,0.00019987,2]
[357492288,1744087832815,-500.0,0.00019987,2]
[357492290,1744087832824,-500.0,0.00019987,2]
[357492292,1744087832834,-1149.36,0.00019987,2]
[357492294,1744087832843,-500.0,0.00019987,2]
[357492296,1744087832853,-500.0,0.00019987,2]
[357492298,1744087832863,-500.0,0.00019987,2]
[357492300,1744087832874,-500.0,0.00019987,2]
[357492303,1744087832884,-500.0,0.00019987,2]
[357492304,1744087832893,-3020.32341632,0.00019987,2]
[357492308,1744087832914,-721.09983269,0.00019987,2]
[357492310,1744087832926,-132.80675099,0.00019987,2]
[357492312,1744087832935,-500.0,0.00019987,2]
[357492314,1744087832944,-1064.06,0.00019987,2]
[357492316,1744087832954,-500.0,0.00019987,2]
[357492318,1744087832963,-178.95340117,0.00019987,2]
[357492320,1744087832973,-500.0,0.00019987,2]
[357492322,1744087832982,-500.0,0.00019987,2]
[357492324,1744087832992,-489.85390833,0.00019987,2]
[357492326,1744087833001,-1472.0,0.00019987,2]
[357492328,1744087833011,-500.0,0.00019987,2]
[357492330,1744087833021,-1466.85,0.00019987,2]
[357492332,1744087833031,-545.53258957,0.00019987,2]
[357492334,1744087833042,-500.0,0.00019987,2]
[357492336,1744087833054,-500.0,0.00019987,2]
[357492338,1744087833064,-507.5254917,0.00019987,2]
[357492340,1744087833075,-892.51,0.00019987,2]
[357492342,1744087833088,-500.0,0.00019987,2]
[357492344,1744087833098,-830.18,0.00019987,2]
[357492345,1744087833107,-2153.98,0.00019987,2]
[357492346,1744087833117,-500.0,0.00019987,2]
[357492347,1744087833129,-500.0,0.00019987,2]
[357492348,1744087833140,-523.6294416,0.00019987,2]
[357492349,1744087833150,-502.92114496,0.00019987,2]
[357492350,1744087833161,-500.0,0.00019987,2]
[357492351,1744087833171,-534.8,0.00019987,2]
[357492352,1744087833181,-1442.99,0.00019987,2]
[357492353,1744087833191,-507.1862368,0.00019987,2]
[357492354,1744087833201,-500.0,0.00019987,2]
[357492355,1744087833211,-1725.72,0.00019987,2]
[357492356,1744087833221,-500.0,0.00019987,2]
[357492357,1744087833231,-500.0,0.00019987,2]
[357492358,1744087833242,-500.0,0.00019987,2]
[357492359,1744087833252,-500.0,0.00019987,2]
[357492360,1744087833262,-500.0,0.00019987,2]
[357492361,1744087833272,-500.0,0.00019987,2]
[357492362,1744087833283,-495.9504221,0.00019987,2]
[357492363,1744087833293,-500.0,0.00019987,2]
[357492364,1744087833304,-500.0,0.00019987,2]
[357492365,1744087833314,-500.0,0.00019987,2]
[357492366,1744087833325,-311.05146306,0.00019987,2]
[357492367,1744087833335,-500.0,0.00019987,2]
[357492368,1744087833345,-500.0,0.00019987,2]
[357492369,1744087833356,-363.62372403,0.00019987,2]
[357492370,1744087833365,-500.0,0.00019987,2]
[357492371,1744087833376,-500.0,0.00019987,2]
[357492372,1744087833386,-419.48,0.00019987,2]
[357492373,1744087833396,-500.0,0.00019987,2]
[357492374,1744087833406,-500.0,0.00019987,2]
[357492375,1744087833417,-500.0,0.00019987,2]
[357492376,1744087833427,-500.0,0.00019987,2]
[357492377,1744087833437,-500.0,0.00019987,2]
[357492378,1744087833447,-500.0,0.00019987,2]
[357492379,1744087833458,-500.0,0.00019987,2]
[357492380,1744087833469,-500.0,0.00019987,2]
[357492381,1744087833479,-500.0,0.00019987,2]
[357492382,1744087833489,-500.0,0.00019987,2]
[357492383,1744087833499,-500.0,0.00019987,2]
[357492384,1744087833509,-500.0,0.00019987,2]
[357492385,1744087833519,-500.0,0.00019987,2]
[357492386,1744087833529,-500.0,0.00019987,2]
[357492387,1744087833539,-540.10941417,0.00019987,2]
[357492388,1744087833549,-500.0,0.00019988,2]
[357492389,1744087833559,-500.0,0.00019988,2]
[357492390,1744087833569,-500.0,0.00019988,2]
[357492391,1744087833580,-500.0,0.00019988,2]
[357492392,1744087833589,-500.0,0.00019988,2]
[357492393,1744087833599,-519.1168335,0.00019988,2]
[357492394,1744087833609,-500.0,0.00019988,2]
[357492395,1744087833621,-500.0,0.00019988,2]
[357492396,1744087833631,-503.38,0.00019988,2]
[357492397,1744087833641,-513.7883961,0.00019988,2]
[357492398,1744087833651,-500.0,0.00019988,2]
[357492399,1744087833661,-500.0,0.00019988,2]
[357492400,1744087833670,-500.0,0.00019988,2]
[357492401,1744087833680,-500.0,0.00019988,2]
[357492402,1744087833691,-500.0,0.00019988,2]
[357492403,1744087833701,-500.0,0.00019988,2]
[357492404,1744087833711,-579.07,0.00019988,2]
[357492405,1744087833721,-671.91,0.00019988,2]
[357492406,1744087833731,-500.0,0.00019988,2]
[357492407,1744087833741,-500.0,0.00019988,2]
[357492408,1744087833751,-500.0,0.00019988,2]
[357492409,1744087833762,-500.0,0.00019988,2]
[357492410,1744087833772,-535.6744836,0.00019988,2]
[357492411,1744087833782,-500.0,0.00019988,2]
[357492412,1744087833792,-500.0,0.00019988,2]
[357492413,1744087833802,-500.0,0.00019988,2]
[357492414,1744087833812,-500.0,0.00019988,2]
[357492415,1744087833822,-500.0,0.00019988,2]
[357492416,1744087833832,-884.75,0.00019988,2]
[357492417,1744087833842,-500.0,0.00019988,2]
[357492418,1744087833851,-500.0,0.00019988,2]
[357492419,1744087833861,-500.0,0.00019988,2]
[357492420,1744087833871,-500.0,0.00019988,2]
[357492421,1744087833881,-500.0,0.00019988,2]
[357492422,1744087833891,-500.0,0.00019988,2]
[357492423,1744087833901,-500.0,0.00019988,2]
[357492424,1744087833911,-1732.52,0.00019988,2]
[357492425,1744087833921,-2224.87,0.00019988,2]
[357492426,1744087833932,-500.0,0.00019988,2]
[357492427,1744087833942,-500.0,0.00019988,2]
[357492428,1744087833952,-500.0,0.00019988,2]
[357492429,1744087833962,-500.0,0.00019988,2]
[357492430,1744087833972,-910.25,0.00019988,2]
[357492431,1744087833982,-500.0,0.00019988,2]
[357492432,1744087833992,-500.0,0.00019988,2]
[357492433,1744087834002,-991.32,0.00019988,2]
[357492434,1744087834012,-1263.78,0.00019988,2]
[357492435,1744087834022,-500.0,0.00019988,2]
[357492436,1744087834032,-500.0,0.00019988,2]
[357492437,1744087834041,-500.0,0.00019988,2]
[357492438,1744087834051,-395.10597038,0.00019988,2]
[357492439,1744087834066,-104.89402962,0.00019988,2]
[357492440,1744087834077,-500.0,0.00019988,2]
[357492441,1744087834089,-500.0,0.00019988,2]
[357492442,1744087834099,-500.0,0.00019988,2]
[357492443,1744087834110,-500.0,0.00019988,2]
[357492444,1744087834120,-500.0,0.00019988,2]
[357492445,1744087834135,-500.0,0.00019988,2]
[357492446,1744087834146,-500.0,0.00019988,2]
[357492447,1744087834157,-505.71703424,0.00019988,2]
[357492448,1744087834168,-500.0,0.00019988,2]
[357492449,1744087834179,-637.36,0.00019988,2]
[357492450,1744087834190,-500.0,0.00019988,2]
[357492451,1744087834200,-500.0,0.00019988,2]
[357492452,1744087834210,-500.0,0.00019988,2]
[357492453,1744087834220,-502.58320181,0.00019988,2]
[357492454,1744087834230,-500.0,0.00019988,2]
[357492455,1744087834240,-979.8,0.00019988,2]
[357492456,1744087834250,-500.0,0.00019988,2]
[357492457,1744087834259,-972.39,0.00019988,2]
[357492458,1744087834270,-500.0,0.00019988,2]
[357492459,1744087834279,-500.0,0.00019988,2]
[357492460,1744087834289,-500.0,0.00019988,2]
[357492461,1744087834299,-500.0,0.00019988,2]
[357492462,1744087834309,-500.0,0.00019988,2]
[357492463,1744087834319,-500.0,0.00019988,2]
[357492464,1744087834328,-1788.41,0.00019988,2]
[357492465,1744087834338,-500.0,0.00019988,2]
[357492466,1744087834348,-500.0,0.00019988,2]
[357492467,1744087834358,-1043.53,0.00019988,2]
[357492468,1744087834368,-500.0,0.00019988,2]
[357492469,1744087834381,-500.0,0.00019988,2]
[357492470,1744087834391,-500.0,0.00019988,2]
[357492471,1744087834402,-500.0,0.00019988,2]
[357492472,1744087834412,-500.0,0.00019988,2]
[357492473,1744087834421,-681.08,0.00019988,2]
[357492474,1744087834432,-500.0,0.00019988,2]
[357492475,1744087834442,-529.51959491,0.00019988,2]
[357492476,1744087834452,-500.0,0.00019988,2]
[357492477,1744087834462,-500.0,0.00019988,2]
[357492478,1744087834471,-734.76,0.00019988,2]
[357492479,1744087834481,-500.0,0.00019989,2]
[357492480,1744087834491,-500.0,0.00019989,2]
[357492481,1744087834500,-500.0,0.00019989,2]
[357492482,1744087834509,-515.09493749,0.00019989,2]
[357492483,1744087834519,-500.0,0.00019989,2]
[357492484,1744087834528,-550.93675108,0.00019989,2]
[357492485,1744087834538,-500.0,0.00019989,2]
[357492486,1744087834547,-544.83554148,0.00019989,2]
[357492487,1744087834557,-500.0,0.00019989,2]
[357492488,1744087834567,-500.0,0.00019989,2]
[357492489,1744087834577,-500.0,0.00019989,2]
[357492490,1744087834586,-514.37000966,0.00019989,2]
[357492491,1744087834596,-512.93651668,0.00019989,2]
[357492492,1744087834606,-500.0,0.00019989,2]
[357492493,1744087834615,-549.06919013,0.00019989,2]
[357492494,1744087834627,-500.0,0.00019989,2]
[357492495,1744087834636,-500.0,0.00019989,2]
[357492496,1744087834646,-500.0,0.00019989,2]
[357492497,1744087834656,-500.0,0.00019989,2]
[357492498,1744087834666,-567.28955694,0.00019989,2]
[357492499,1744087834676,-500.0,0.00019989,2]
[357492500,1744087834685,-500.0,0.00019989,2]
[357492501,1744087834695,-500.0,0.00019989,2]
[357492502,1744087834705,-332.1388542,0.00019989,2]
[357492503,1744087834715,-500.0,0.00019989,2]
[357492504,1744087834725,-500.0,0.00019989,2]
[357492505,1744087834734,-500.0,0.00019989,2]
[357492506,1744087834744,-500.0,0.00019989,2]
[357492507,1744087834754,-500.0,0.00019989,2]
[357492508,1744087834764,-500.0,0.00019989,2]
[357492509,1744087834773,-500.0,0.00019989,2]
[357492510,1744087834783,-500.0,0.00019989,2]
[357492511,1744087834792,-500.0,0.00019989,2]
[357492512,1744087834802,-500.0,0.00019989,2]